bitfinex/quotes_SOLUSD_20251025
["timestamp","ask_amount","ask_price","bid_price","bid_amount"]
[1761352386928,0.65,192.78,192.73,18.43173795]
[1761352387130,0.65,192.78,192.75,12.53313213]
[1761352387341,35.88,192.77,192.75,12.53313213]
[1761352387943,35.88,192.76,192.75,13.24313213]
[1761352388148,35.88,192.76,192.75,12.53313213]
[1761352388445,0.65,192.78,192.75,17.72119957]
[1761352388641,35.88,192.77,192.75,17.72119957]
[1761352388832,0.65,192.78,192.75,17.72119957]
[1761352389030,35.88,192.77,192.75,17.72119957]
[1761352389338,35.88,192.77,192.75,16.06454265]
[1761352389940,36.53,192.77,192.75,16.06454265]
[1761352390448,35.88,192.77,192.75,16.06454265]
[1761352391036,35.88,192.76,192.75,17.72119957]
[1761352391647,0.65,192.78,192.75,17.72119957]
[1761352391822,35.88,192.76,192.75,17.72119957]
[1761352392336,35.88,192.76,192.75,16.06454265]
[1761352392744,36.53,192.76,192.71,12.97274459]
[1761352392933,0.65,192.75,192.69,23.59]
[1761352393246,2.80665692,192.75,192.7,10.87647521]
[1761352393542,1.15,192.75,192.7,16.0658888]
[1761352393749,0.65,192.74,192.7,18.43254572]
[1761352393927,35.88,192.73,192.7,18.43254572]
[1761352397048,35.88,192.73,192.72,10.87647521]
[1761352397743,36.53,192.73,192.72,10.87647521]
[1761352398349,36.53,192.73,192.72,5.18887505]
[1761352398549,35.88,192.73,192.72,5.18887505]
[1761352398854,35.88,192.73,192.72,16.06535026]
[1761352400361,36.55,192.73,192.72,16.06535026]
[1761352401537,36.55,192.73,192.72,10.87647521]
[1761352404936,35.88,192.73,192.72,10.87647521]
[1761352406739,36.55,192.73,192.72,10.87647521]
[1761352409757,38.20665692,192.73,192.72,10.87647521]
[1761352409962,36.55,192.73,192.72,10.87647521]
[1761352410163,38.20665692,192.73,192.72,10.87647521]
[1761352410356,41.73866086,192.73,192.66,10.87647521]
[1761352410648,1.65665692,192.67,192.63,16.06774898]
[1761352410863,35.88,192.66,192.63,16.06774898]
[1761352411064,36.55,192.66,192.63,16.06774898]
[1761352411251,36.55,192.66,192.63,16.74774898]
[1761352411644,35.88,192.66,192.65,10.87647521]
[1761352411844,35.88,192.66,192.65,12.53313213]
[1761352412064,35.88,192.66,192.65,11.55647521]
[1761352412247,35.9,192.66,192.65,11.55647521]
[1761352412459,35.9,192.66,192.65,10.87647521]
[1761352412660,0.67,192.68,192.65,10.87647521]
[1761352412661,0.67,192.68,192.65,11.55647521]
[1761352412861,35.9,192.67,192.65,11.55647521]
[1761352413054,35.9,192.67,192.65,10.87647521]
[1761352413243,35.9,192.67,192.65,16.74717364]
[1761352413869,0.67,192.68,192.65,16.06717364]
[1761352414072,35.9,192.67,192.65,16.06717364]
[1761352414677,35.9,192.67,192.65,16.74717364]
[1761352416274,35.88,192.66,192.65,16.74717364]
[1761352416476,0.67,192.71,192.66,0.68]
[1761352416653,35.88,192.7,192.66,0.68]
[1761352416852,35.9,192.69,192.66,0.68]
[1761352417185,35.9,192.69,192.66,2.33665692]
[1761352418076,36.57,192.69,192.66,2.33665692]
[1761352418580,35.9,192.69,192.68,10.87647521]
[1761352419892,35.9,192.69,192.68,16.06642746]
[1761352422990,0.67,192.7,192.68,16.06642746]
[1761352423290,35.9,192.69,192.68,16.06642746]
[1761352425890,0.67,192.7,192.68,16.06642746]
[1761352426193,35.88,192.69,192.68,16.06642746]
[1761352426576,0.67,192.7,192.68,16.06642746]
[1761352426776,35.88,192.69,192.68,16.06642746]
[1761352427075,0.67,192.7,192.68,16.06642746]
[1761352427396,35.88,192.69,192.68,16.06642746]
[1761352427766,0.67,192.7,192.68,16.06642746]
[1761352427960,35.88,192.69,192.68,16.06642746]
[1761352430497,0.69,192.72,192.68,19.3540204]
[1761352430686,35.88,192.71,192.69,3.28759294]
[1761352431078,35.88,192.71,192.69,2.58759294]
[1761352431399,36.57,192.71,192.69,2.58759294]
[1761352432799,36.57,192.71,192.69,7.77726108]
[1761352433617,36.57,192.71,192.69,5.18966814]
[1761352433791,35.88,192.71,192.69,5.18966814]
[1761352434097,0.69,192.7,192.69,16.06614335]
[1761352434588,36.57,192.71,192.69,16.06614335]
[1761352435312,35.88,192.71,192.69,16.06614335]
[1761352435479,36.57,192.71,192.69,16.06614335]
[1761352436380,0.69,192.7,192.69,16.06614335]
[1761352437687,35.88,192.71,192.69,16.06614335]
[1761352438085,36.57,192.71,192.69,16.06614335]
[1761352439484,35.88,192.71,192.69,16.06614335]
[1761352439686,0.69,192.7,192.69,16.06614335]
[1761352439916,36.57,192.71,192.69,16.06614335]
[1761352440413,0.69,192.71,192.69,16.06614335]
[1761352440620,0.69,192.71,192.69,10.87647521]
[1761352440915,35.86,192.7,192.69,10.87647521]
[1761352441396,36.55,192.7,192.69,10.87647521]
[1761352442299,35.86,192.7,192.69,16.06615812]
[1761352444113,35.86,192.7,192.69,10.87647521]
[1761352444315,35.86,192.7,192.69,16.06615812]
[1761352447391,36.55,192.7,192.69,16.06615812]
[1761352451514,35.86,192.7,192.69,16.06615812]
[1761352451814,36.55,192.7,192.69,16.06615812]
[1761352453021,35.86,192.7,192.69,16.06615812]
[1761352453310,35.86,192.7,192.69,16.72615812]
[1761352454125,35.86,192.7,192.69,16.06615812]
[1761352454302,36.55,192.7,192.69,10.87647521]
[1761352458218,35.86,192.7,192.69,10.87647521]
[1761352459121,36.55,192.7,192.69,10.87647521]
[1761352459343,44.32708036,192.7,192.63,4.32674119]
[1761352459502,2.58759294,192.67,192.62,10.87647521]
[1761352459810,38.46759294,192.66,192.62,10.87647521]
[1761352460118,35.88,192.65,192.62,10.87647521]
[1761352460316,36.6,192.65,192.62,16.06800681]
[1761352460526,0.72,192.64,192.62,16.06800681]
[1761352460695,35.9,192.63,192.62,16.06800681]
[1761352462521,36.62,192.63,192.61,10.87647521]
[1761352462718,36.62,192.63,192.61,11.57647521]
[1761352463023,35.9,192.63,192.61,11.57647521]
[1761352464094,35.9,192.63,192.61,16.76812176]
[1761352466598,35.9,192.63,192.61,18.6557147]
[1761352466804,0.72,192.66,192.62,0.7]
[1761352467109,35.88,192.65,192.62,3.28759294]
[1761352468099,0.72,192.66,192.62,3.28759294]
[1761352468100,35.9,192.64,192.62,3.28759294]
[1761352468726,0.72,192.66,192.64,10.87647521]
[1761352468924,35.9,192.65,192.64,10.87647521]
[1761352475037,36.62,192.65,192.64,10.87647521]
[1761352476033,35.9,192.65,192.64,10.87647521]
[1761352478614,35.88,192.65,192.64,10.87647521]
[1761352480020,0.72,192.68,192.64,16.76750511]
[1761352480341,35.88,192.67,192.64,16.76750511]
[1761352481018,36.6,192.67,192.64,16.76750511]
[1761352481926,35.88,192.66,192.64,16.76750511]
[1761352482658,35.88,192.65,192.64,16.76750511]
[1761352482942,35.88,192.65,192.64,16.06750511]
[1761352483344,35.88,192.65,192.64,16.76750511]
[1761352483843,0.72,192.67,192.64,16.76750511]
[1761352484046,35.88,192.65,192.64,16.76750511]
[1761352484546,0.72,192.67,192.64,16.76750511]
[1761352484730,35.88,192.66,192.64,16.76750511]
[1761352487551,0.72,192.69,192.66,10.87647521]
[1761352487745,35.88,192.68,192.66,11.57647521]
[1761352488043,35.88,192.68,192.67,10.87647521]
[1761352489239,35.88,192.68,192.67,11.57647521]
[1761352489447,35.88,192.68,192.67,16.76669683]
[1761352489825,102.2,192.74,192.67,18.4233875]
[1761352490031,35.88,192.73,192.68,13.22316588]
[1761352490249,38.20669067,192.73,192.68,13.22316588]
[1761352490453,0.67,192.72,192.69,0.69]
[1761352491958,35.88,192.71,192.69,0.69]
[1761352496837,36.55,192.71,192.68,16.75626925]
[1761352497040,1.65669067,192.69,192.67,10.87647521]
[1761352497249,35.86,192.68,192.67,10.87647521]
[1761352497440,36.53,192.68,192.67,10.87647521]
[1761352502159,36.53,192.68,192.65,0.65]
[1761352502334,35.86,192.68,192.66,10.87647521]
[1761352502542,0.69,192.67,192.66,10.87647521]
[1761352502866,35.86,192.68,192.66,10.87647521]
[1761352503035,36.55,192.68,192.66,10.87647521]
[1761352503239,35.86,192.68,192.66,10.87647521]
[1761352503454,0.69,192.67,192.66,10.87647521]
[1761352503645,36.55,192.68,192.66,10.87647521]
[1761352504761,0.69,192.67,192.66,10.87647521]
[1761352506143,35.86,192.68,192.66,10.87647521]
[1761352506467,36.55,192.68,192.66,10.87647521]
[1761352508163,37.51669067,192.68,192.66,10.87647521]
[1761352508346,7.53699028,192.67,192.64,10.87647521]
[1761352508546,1.65669067,192.65,192.64,10.87647521]
[1761352508746,38.20669067,192.66,192.64,10.87647521]
[1761352509064,0.69,192.65,192.64,10.87647521]
[1761352509450,0.69,192.65,192.63,10.87647521]
[1761352509656,35.86,192.64,192.63,10.87647521]
[1761352510745,35.86,192.64,192.63,16.06777459]
[1761352515765,35.86,192.64,192.63,16.71777459]
[1761352516108,35.86,192.64,192.63,18.37446526]
[1761352516258,35.86,192.64,192.63,16.71777459]
[1761352520180,35.86,192.64,192.63,32.30826439]
[1761352520475,35.86,192.64,192.63,16.71777459]
[1761352523373,35.86,192.64,192.63,32.30826439]
[1761352523878,2.34669067,192.67,192.63,32.30826439]
[1761352524077,36.51,192.66,192.63,32.30826439]
[1761352524780,36.51,192.66,192.63,16.71777459]
[1761352524975,0.65,192.66,192.63,16.71777459]
[1761352525581,35.86,192.65,192.63,16.71777459]
[1761352525774,35.86,192.65,192.64,5.8510299]
[1761352531376,102.2,192.7,192.64,5.8510299]
[1761352531377,102.85,192.7,192.64,29.70507986]
[1761352531690,35.86,192.71,192.69,1.65669067]
[1761352531862,35.86,192.7,192.69,1.65669067]
[1761352532063,35.9,192.7,192.69,1.65669067]
[1761352532474,35.9,192.7,192.69,28.77879592]
[1761352532676,35.9,192.7,192.69,33.96847883]
[1761352534579,31.16,192.78,192.7,10.87647521]
[1761352534778,35.9,192.77,192.74,10.87647521]
[1761352534979,31.16,192.78,192.76,12.53316588]
[1761352535166,35.9,192.77,192.72,10.87647521]
[1761352535367,35.9,192.77,192.76,10.87647521]
[1761352536376,35.9,192.77,192.76,16.0642735]
[1761352536800,35.9,192.77,192.76,16.7242735]
[1761352537102,35.9,192.77,192.76,18.38096417]
[1761352538490,35.9,192.77,192.76,16.7242735]
[1761352538789,35.9,192.77,192.76,32.2781744]
[1761352541804,35.9,192.79,192.76,32.2781744]
[1761352542001,0.65,192.83,192.78,13.46088037]
[1761352542191,7.46004422,192.87,192.82,2.58440516]
[1761352542501,7.46004422,192.87,192.84,10.87647521]
[1761352542502,36.55,192.86,192.84,10.87647521]
[1761352543067,36.55,192.86,192.84,21.75295042]
[1761352543301,35.9,192.86,192.85,16.06185244]
[1761352544103,36.55,192.86,192.85,16.06185244]
[1761352545600,35.9,192.86,192.85,16.06185244]
[1761352545906,35.9,192.87,192.85,19.3062576]
[1761352546076,35.9,192.87,192.86,2.58440516]
[1761352546602,35.9,192.87,192.86,18.15709066]
[1761352546783,35.9,192.87,192.86,23.34219902]
[1761352546982,35.9,192.87,192.86,34.87867423]
[1761352547584,35.9,192.88,192.86,47.84144515]
[1761352547795,35.9,192.88,192.87,3.24440516]
[1761352548292,35.9,192.88,192.87,18.81628234]
[1761352549101,35.9,192.88,192.87,24.00112186]
[1761352550579,35.9,192.88,192.87,34.87759707]
[1761352550786,35.9,192.88,192.87,32.29319191]
[1761352550996,35.9,192.88,192.87,34.87759707]
[1761352552611,36.62,192.88,192.87,31.63319191]
[1761352552787,36.62,192.88,192.87,16.06131473]
[1761352555495,35.9,192.88,192.87,16.06131473]
[1761352557719,36.6,192.88,192.87,16.06131473]
[1761352557911,36.6,192.88,192.87,10.87647521]
[1761352558991,36.6,192.88,192.87,16.06131473]
[1761352560129,35.9,192.88,192.87,16.06131473]
[1761352560291,0.7,192.93,192.87,19.35571989]
[1761352560497,0.7,192.94,192.9,13.46088037]
[1761352560730,36.58,192.93,192.92,10.87647521]
[1761352561094,36.58,192.93,192.89,10.87647521]
[1761352561322,0.7,192.92,192.91,10.87647521]
[1761352561508,36.58,192.93,192.92,16.05997095]
[1761352562025,35.88,192.93,192.92,16.05997095]
[1761352562392,36.58,192.93,192.92,16.05997095]
[1761352562592,7.9666005,192.97,192.93,10.87647521]
[1761352562593,0.7,192.95,192.93,10.87647521]
[1761352562822,35.88,192.94,192.93,10.87647521]
[1761352563324,35.88,192.94,192.92,7.7679009]
[1761352563817,36.58,192.94,192.92,7.7679009]
[1761352566005,0.2,192.97,192.93,10.87647521]
[1761352566320,0.7,192.94,192.93,10.87647521]
[1761352566523,0.7,192.94,192.92,18.64437611]
[1761352566719,35.88,192.93,192.92,18.64437611]
[1761352568418,35.88,192.93,192.92,16.05997095]
[1761352572526,36.58,192.93,192.92,10.87647521]
[1761352572926,35.88,192.93,192.92,10.87647521]
[1761352575906,35.88,192.93,192.92,16.76997095]
[1761352576310,35.88,192.93,192.92,19.35437611]
[1761352578123,35.86,192.93,192.92,19.35437611]
[1761352585358,0.2,192.97,192.93,10.87647521]
[1761352585529,0.2,192.97,192.96,13.46088037]
[1761352585727,36.04,192.97,192.96,13.46088037]
[1761352586045,36.04,192.97,192.96,14.11088037]
[1761352586251,0.2,192.97,192.96,14.11088037]
[1761352586451,36.04,192.97,192.96,14.11088037]
[1761352588351,36.04,192.97,192.96,19.29330159]
[1761352590053,36.04,192.97,192.96,16.70889643]
[1761352590649,36.04,192.97,192.96,16.05889643]
[1761352591335,36.04,192.97,192.96,16.70889643]
[1761352593237,36.75,192.97,192.96,16.05889643]
[1761352593429,36.75,192.97,192.96,10.87647521]
[1761352593751,39.33440516,192.97,192.96,10.87647521]
[1761352593944,36.75,192.97,192.96,10.87647521]
[1761352597435,36.75,192.97,192.96,16.05889643]
[1761352597771,36.04,192.97,192.96,16.05889643]
[1761352598348,36.75,192.97,192.96,16.05889643]
[1761352598751,0.91,192.97,192.96,16.05889643]
[1761352598956,36.75,192.97,192.96,16.05889643]
[1761352599558,0.91,192.97,192.96,16.05889643]
[1761352599748,36.75,192.97,192.96,16.05889643]
[1761352600763,0.91,192.97,192.96,16.05889643]
[1761352600938,36.75,192.97,192.96,16.05889643]
[1761352601561,36.75,192.97,192.96,10.87647521]
[1761352602262,0.91,192.97,192.96,10.87647521]
[1761352602455,36.75,192.97,192.96,10.87647521]
[1761352602650,0.91,192.97,192.96,10.87647521]
[1761352602960,36.75,192.97,192.96,10.87647521]
[1761352604868,31.75,192.97,192.96,10.87647521]
[1761352605044,31.75,192.97,192.95,10.87647521]
[1761352609873,31.75,192.97,192.95,11.54647521]
[1761352610051,31.75,192.97,192.95,10.87647521]
[1761352611192,0.89,192.98,192.95,10.87647521]
[1761352611345,35.82,192.96,192.95,10.87647521]
[1761352612049,35.82,192.96,192.95,11.54647521]
[1761352612477,35.82,192.96,192.95,10.87647521]
[1761352616980,0.89,192.98,192.95,10.87647521]
[1761352617150,35.82,192.97,192.96,11.54647521]
[1761352617354,35.82,192.97,192.96,10.87647521]
[1761352617978,35.82,192.97,192.96,11.56647521]
[1761352618165,35.82,192.97,192.96,10.87647521]
[1761352618673,35.82,192.97,192.96,11.56647521]
[1761352618871,35.82,192.97,192.96,16.74889643]
[1761352619074,0.2,192.98,192.96,16.74889643]
[1761352619682,0.2,192.98,192.96,16.05889643]
[1761352619885,35.82,192.97,192.96,16.05889643]
[1761352620194,35.82,192.97,192.9,1.65127364]
[1761352620195,38.15127364,192.97,192.9,10.87647521]
[1761352620375,1.65127364,192.95,192.9,10.87647521]
[1761352620577,35.82,192.94,192.9,10.87647521]
[1761352620886,36.5,192.94,192.91,10.87647521]
[1761352622174,2.33127364,192.96,192.91,11.56647521]
[1761352622380,35.82,192.95,192.92,0.69]
[1761352622990,36.5,192.95,192.91,16.74999739]
[1761352623887,0.68,192.94,192.91,16.74999739]
[1761352624983,35.82,192.93,192.91,16.74999739]
[1761352625487,35.82,192.93,192.92,16.74997095]
[1761352626096,0.68,192.96,192.92,16.74997095]
[1761352626290,35.82,192.95,192.92,16.05997095]
[1761352626595,35.82,192.95,192.92,10.87647521]
[1761352626790,0.68,192.94,192.92,10.87647521]
[1761352627094,2.33127364,192.94,192.86,12.9621722]
[1761352627276,1.65127364,192.93,192.85,11.56647521]
[1761352627592,1.65127364,192.93,192.87,10.87647521]
[1761352627593,35.84,192.92,192.87,10.87647521]
[1761352627897,35.84,192.92,192.87,12.52774885]
[1761352628190,36.52,192.92,192.89,10.87647521]
[1761352630182,36.52,192.92,192.89,16.06066646]
[1761352630379,35.84,192.92,192.91,10.87647521]
[1761352630686,35.84,192.92,192.91,11.56647521]
[1761352631094,35.84,192.92,192.91,0.69]
[1761352631587,35.84,192.92,192.91,5.87376444]
[1761352634386,35.84,192.92,192.91,7.52503808]
[1761352634889,35.84,192.93,192.92,10.87647521]
[1761352635070,35.84,192.93,192.92,13.21774885]
[1761352636577,35.84,192.93,192.92,16.74997095]
[1761352638301,35.84,192.93,192.92,18.40124459]
[1761352638598,35.84,192.93,192.92,16.74997095]
[1761352649610,35.84,192.93,192.92,16.05997095]
[1761352652419,35.84,192.93,192.92,16.72997095]
[1761352655434,35.84,192.93,192.92,18.38124459]
[1761352658124,35.84,192.93,192.92,16.72997095]
[1761352671331,35.84,192.93,192.92,16.05997095]
[1761352671535,36.55,192.93,192.92,16.05997095]
[1761352671838,35.84,192.93,192.92,16.05997095]
[1761352674746,35.84,192.93,192.92,16.74997095]
[1761352680536,36.02,192.98,192.92,59.53551355]
[1761352680741,36.02,192.98,192.97,13.45722848]
[1761352680926,36.02,192.98,192.97,14.17722848]
[1761352681263,0.2,192.98,192.97,19.35938114]
[1761352681449,0.2,193.03,192.97,32.3147628]
[1761352681616,17.2,193.01,192.98,11.59647521]
[1761352681817,17.2,193.01,193.0,13.45722848]
[1761352682235,36.04,193.03,193.01,10.87647521]
[1761352682428,36.04,193.03,193.01,14.17722848]
[1761352683420,36.04,193.03,193.01,19.35830718]
[1761352687143,36.04,193.03,193.01,16.05755391]
[1761352688042,36.04,193.03,193.01,16.77755391]
[1761352688532,36.04,193.03,193.01,16.05755391]
[1761352689854,36.04,193.03,193.01,16.77755391]
[1761352691059,36.04,193.03,193.01,19.35830718]
[1761352691536,36.04,193.03,193.01,18.63830718]
[1761352691737,36.04,193.03,193.01,16.05755391]
[1761352692258,36.04,193.03,193.01,16.77755391]
[1761352692665,36.04,193.03,193.01,16.05755391]
[1761352694345,36.04,193.03,193.01,16.77755391]
[1761352698958,0.86,193.02,192.99,5.18138477]
[1761352699158,2.58075327,193.01,192.97,10.87647521]
[1761352699449,36.48,193.0,192.97,10.87647521]
[1761352700357,36.48,193.0,192.97,16.05858427]
[1761352701557,0.67,192.99,192.93,27.29297207]
[1761352701755,3.25075327,192.99,192.94,16.05943364]
[1761352701945,3.25075327,192.99,192.94,16.71943364]
[1761352702146,0.67,192.98,192.94,16.71943364]
[1761352702462,35.82,192.97,192.94,16.71943364]
[1761352703154,36.49,192.97,192.94,16.05943364]
[1761352704530,0.67,192.96,192.94,16.05943364]
[1761352704735,36.49,192.97,192.94,16.05943364]
[1761352704951,36.49,192.97,192.94,16.71943364]
[1761352705155,35.82,192.97,192.94,16.71943364]
[1761352706046,36.49,192.97,192.94,16.05943364]
[1761352707451,0.67,192.96,192.94,16.05943364]
[1761352707857,0.67,192.96,192.91,2.58075327]
[1761352707858,3.25075327,192.96,192.93,5.18317739]
[1761352708062,3.25075327,192.96,192.91,16.72009814]
[1761352708373,2.58075327,192.94,192.88,10.87647521]
[1761352708552,35.82,192.93,192.9,10.87647521]
[1761352709064,35.82,192.93,192.9,0.66]
[1761352709572,35.82,192.93,192.91,5.18376444]
[1761352715164,36.49,192.93,192.91,5.18376444]
[1761352715747,35.82,192.93,192.91,5.18376444]
[1761352721558,35.82,192.93,192.91,0.66]
[1761352722367,35.82,192.93,192.9,11.53647521]
[1761352722553,35.82,192.93,192.91,5.18376444]
[1761352722756,36.49,192.93,192.91,5.18376444]
[1761352723379,35.82,192.93,192.91,5.18376444]
[1761352731481,35.82,192.93,192.91,5.86376444]
[1761352732667,35.82,192.92,192.91,16.06023965]
[1761352732863,35.82,192.92,192.91,16.74023965]
[1761352733974,35.82,192.92,192.91,16.06023965]
[1761352735289,35.82,192.92,192.91,16.74023965]
[1761352736785,35.82,192.92,192.91,16.06023965]
[1761352736983,35.82,192.92,192.91,10.87647521]
[1761352741518,36.52,192.92,192.87,0.7]
[1761352741694,36.52,192.92,192.83,5.80296775]
[1761352741695,2.35216502,192.91,192.84,4.36604996]
[1761352742001,1.65216502,192.89,192.85,10.87647521]
[1761352742198,35.82,192.88,192.83,0.7]
[1761352742406,36.52,192.88,192.83,0.7]
[1761352742581,0.7,192.87,192.83,5.8857816]
[1761352742779,0.7,192.87,192.84,10.87647521]
[1761352744797,1.65216502,192.86,192.81,5.18625844]
[1761352745002,35.82,192.85,192.82,10.87647521]
[1761352745297,35.82,192.85,192.82,11.57647521]
[1761352746888,0.7,192.91,192.84,10.87647521]
[1761352747088,37.47216502,192.9,192.84,10.87647521]
[1761352747288,37.47216502,192.9,192.85,0.7]
[1761352747594,38.17216502,192.9,192.85,0.7]
[1761352747802,0.7,192.89,192.85,0.7]
[1761352747991,0.7,192.89,192.84,16.06212134]
[1761352748193,1.65216502,192.87,192.81,0.7]
[1761352748395,37.49216502,192.86,192.82,10.87647521]
[1761352748910,2.35216502,192.85,192.82,10.87647521]
[1761352749089,0.7,192.85,192.82,10.87647521]
[1761352749289,0.7,192.85,192.82,11.57647521]
[1761352750300,35.84,192.86,192.82,16.76251991]
[1761352750604,36.54,192.86,192.82,16.76251991]
[1761352753600,0.7,192.85,192.82,11.57647521]
[1761352753790,0.7,192.85,192.82,10.87647521]
[1761352754198,0.7,192.85,192.82,11.57647521]
[1761352754399,0.7,192.85,192.82,10.87647521]
[1761352755517,0.7,192.85,192.75,0.1]
[1761352755518,1.65216502,192.83,192.75,0.1]
[1761352755684,1.65216502,192.8,192.75,0.8]
[1761352755884,38.21216502,192.79,192.76,10.87647521]
[1761352756117,35.86,192.78,192.75,10.97647521]
[1761352756284,36.56,192.78,192.75,10.97647521]
[1761352756889,35.86,192.78,192.75,11.67647521]
[1761352757887,35.86,192.78,192.75,16.86442518]
[1761352759926,35.86,192.78,192.76,0.66]
[1761352761411,35.86,192.78,192.76,5.8476124]
[1761352761896,35.86,192.78,192.77,0.66]
[1761352762916,35.86,192.78,192.76,5.1876124]
[1761352763213,35.86,192.78,192.76,5.8476124]
[1761352763407,35.86,192.78,192.77,0.66]
[1761352766016,35.86,192.78,192.76,5.8476124]
[1761352767522,35.86,192.78,192.76,0.66]
[1761352769502,35.86,192.78,192.76,5.84772035]
[1761352769701,35.86,192.78,192.77,0.66]
[1761352770228,35.86,192.78,192.76,5.84772035]
[1761352771120,35.86,192.78,192.77,0.66]
[1761352771426,35.86,192.78,192.76,5.18772035]
[1761352771624,35.86,192.78,192.76,5.84772035]
[1761352772719,35.86,192.78,192.76,0.66]
[1761352773523,35.86,192.78,192.76,5.84770423]
[1761352774926,29.718341,192.83,192.77,11.53647521]
[1761352775222,38.18216502,192.82,192.77,11.53647521]
[1761352775600,0.67,192.81,192.77,11.53647521]
[1761352775798,0.67,192.81,192.77,10.87647521]
[1761352776007,0.67,192.81,192.78,0.66]
[1761352776422,37.51216502,192.82,192.78,0.66]
[1761352776629,38.18216502,192.82,192.78,0.66]
[1761352779206,22.88,192.83,192.79,10.87647521]
[1761352779411,15.57,192.99,192.83,10.87647521]
[1761352779412,2.32216502,192.9,192.83,10.87647521]
[1761352779734,35.86,192.89,192.84,2.31216502]
[1761352779907,36.53,192.89,192.84,2.31216502]
[1761352780114,36.53,192.89,192.85,0.66]
[1761352780617,35.86,192.89,192.85,0.66]
[1761352781357,31.14,192.93,192.88,1.65216502]
[1761352781511,35.88,192.92,192.88,1.65216502]
[1761352781706,35.88,192.92,192.89,0.66]
[1761352782113,35.88,192.91,192.9,16.06033534]
[1761352782628,35.88,192.91,192.9,16.72033534]
[1761352784239,35.88,192.91,192.9,16.06033534]
[1761352784947,35.88,192.91,192.9,10.87647521]
[1761352787033,35.88,192.91,192.9,11.53647521]
[1761352787352,35.88,192.91,192.9,10.87647521]
[1761352790451,35.88,192.91,192.9,11.53647521]
[1761352791353,35.88,192.91,192.9,10.87647521]
[1761352793453,35.88,192.91,192.89,16.2302608]
[1761352793635,35.88,192.91,192.86,0.66]
[1761352793636,3.29128141,192.9,192.86,0.66]
[1761352793842,35.86,192.89,192.86,10.87647521]
[1761352794154,35.86,192.89,192.87,0.66]
[1761352794349,35.86,192.89,192.87,16.2326855]
[1761352794740,33.72128141,192.93,192.88,11.53647521]
[1761352794940,35.86,192.92,192.88,11.53647521]
[1761352795155,35.86,192.92,192.89,0.66]
[1761352795361,35.86,192.92,192.89,5.84427796]
[1761352798338,35.86,192.92,192.89,5.18427796]
[1761352798539,35.86,192.92,192.9,0.66]
[1761352798941,35.86,192.92,192.89,5.18427796]
[1761352799144,35.86,192.92,192.89,5.84427796]
[1761352799343,38.44128141,192.92,192.89,5.84427796]
[1761352800347,2.58128141,192.91,192.89,5.84427796]
[1761352800549,35.86,192.9,192.89,16.72075317]
[1761352802068,31.14,192.93,192.9,10.87647521]
[1761352802360,35.86,192.92,192.91,11.53647521]
[1761352803165,35.86,192.92,192.91,16.72023965]
[1761352806954,107.38190468,192.98,192.92,10.87647521]
[1761352806955,102.2,192.98,192.92,10.87647521]
[1761352807149,35.86,192.97,192.95,2.58128141]
[1761352807350,35.86,192.96,192.94,10.87647521]
[1761352807557,35.86,192.97,192.95,2.58128141]
[1761352808064,35.86,192.97,192.96,11.53647521]
[1761352808470,35.86,192.97,192.96,14.11775662]
[1761352808670,35.86,192.97,192.96,16.71889643]
[1761352810558,35.86,192.97,192.96,19.30017784]
[1761352810758,10.02204625,193.01,192.96,32.2562309]
[1761352810960,35.86,193.0,192.99,10.87647521]
[1761352811388,35.86,193.0,192.99,11.53647521]